[Event "Late-Titled-Tuesday-Blitz-June-04-2024"]
[Site "Chess.com"]
[Date "2024.06.04"]
[Round "2"]
[White "MaestroCheck"]
[Black "Jospem"]
[Result "0-1"]
[WhiteElo "2618"]
[BlackElo "3042"]
[TimeControl "180+1"]
[EndTime "14:16:03 PDT"]
[Termination "Jospem won by resignation"]

1. e4 {[%clk 0:03:00.9]} 1... c5 {[%clk 0:02:57.1]} 2. Nc3 {[%clk 0:03:00.5]}
2... d6 {[%clk 0:02:56.9]} 3. Bb5+ {[%clk 0:02:59.9]} 3... Nd7 {[%clk
0:02:56.5]} 4. Bxd7+ {[%clk 0:03:00.5]} 4... Bxd7 {[%clk 0:02:56.5]} 5. d4
{[%clk 0:03:00.7]} 5... cxd4 {[%clk 0:02:57.4]} 6. Qxd4 {[%clk 0:03:01.2]} 6...
Nf6 {[%clk 0:02:54.1]} 7. Bg5 {[%clk 0:02:55.7]} 7... h6 {[%clk 0:02:53.7]} 8.
Bxf6 {[%clk 0:02:55.4]} 8... gxf6 {[%clk 0:02:54.6]} 9. O-O-O {[%clk 0:02:55.2]}
9... Rg8 {[%clk 0:02:50.7]} 10. g3 {[%clk 0:02:51.6]} 10... e6 {[%clk
0:02:50.5]} 11. f4 {[%clk 0:02:51.8]} 11... Qb6 {[%clk 0:02:40.9]} 12. Qd3
{[%clk 0:02:48]} 12... Rc8 {[%clk 0:02:33.8]} 13. Nf3 {[%clk 0:02:43.6]} 13...
Qc5 {[%clk 0:02:34.4]} 14. e5 {[%clk 0:02:27.7]} 14... Bc6 {[%clk 0:01:55]} 15.
exd6 {[%clk 0:02:21.9]} 15... Bxd6 {[%clk 0:01:48.8]} 16. Rhe1 {[%clk
0:01:58.7]} 16... Be7 {[%clk 0:01:46]} 17. Nd4 {[%clk 0:01:57.7]} 17... f5
{[%clk 0:01:40.4]} 18. Nxc6 {[%clk 0:01:57]} 18... Qxc6 {[%clk 0:01:41.3]} 19.
Qb5 {[%clk 0:01:52.7]} 19... a6 {[%clk 0:01:35.1]} 20. Qxc6+ {[%clk 0:01:52.2]}
20... Rxc6 {[%clk 0:01:36]} 21. Rd3 {[%clk 0:01:45.6]} 21... h5 {[%clk
0:01:35.6]} 22. Ne2 {[%clk 0:01:27.5]} 22... h4 {[%clk 0:01:32.9]} 23. Nd4
{[%clk 0:01:23.4]} 23... Rc7 {[%clk 0:01:24.1]} 24. Red1 {[%clk 0:01:18.8]}
24... Bf6 {[%clk 0:01:21.5]} 25. gxh4 {[%clk 0:01:14.3]} 25... Rg4 {[%clk
0:01:13.1]} 26. Re1 {[%clk 0:00:55.9]} 26... Rxf4 {[%clk 0:01:03.2]} 27. Nf3
{[%clk 0:00:53.2]} 27... Bxh4 {[%clk 0:01:01.6]} 28. Nxh4 {[%clk 0:00:50.5]}
28... Rxh4 {[%clk 0:01:02.5]} 29. Re2 {[%clk 0:00:49.9]} 29... Ke7 {[%clk
0:01:01.6]} 30. Rf3 {[%clk 0:00:48.8]} 30... Kf6 {[%clk 0:01:01.8]} 31. c3
{[%clk 0:00:48.7]} 31... e5 {[%clk 0:01:01.5]} 32. Ref2 {[%clk 0:00:48.6]} 32...
f4 {[%clk 0:01:01.7]} 33. Re2 {[%clk 0:00:49.3]} 33... Kf5 {[%clk 0:01:02.1]}
34. Rf1 {[%clk 0:00:48.5]} 34... e4 {[%clk 0:01:02.1]} 35. Rd2 {[%clk
0:00:49.3]} 35... f3 {[%clk 0:00:59.2]} 36. Re1 {[%clk 0:00:48.2]} 36... Re7
{[%clk 0:00:58.8]} 37. Rd6 {[%clk 0:00:47]} 37... Rxh2 {[%clk 0:00:56.5]} 38.
Rd5+ {[%clk 0:00:45.9]} 38... Kf4 {[%clk 0:00:56.7]} 39. Rd6 {[%clk 0:00:46.6]}
39... f5 {[%clk 0:00:57.3]} 40. Rd5 {[%clk 0:00:46.6]} 40... f2 {[%clk
0:00:57.5]} 41. Rd6 {[%clk 0:00:47.4]} 41... fxe1=Q+ {[%clk 0:00:57.6]} 0-1

[Event "Late-Titled-Tuesday-Blitz-June-04-2024"]
[Site "Chess.com"]
[Date "2024.06.04"]
[Round "2"]
[White "Msb2"]
[Black "osh1ro"]
[Result "1-0"]
[WhiteElo "3039"]
[BlackElo "2617"]
[TimeControl "180+1"]
[EndTime "14:16:11 PDT"]
[Termination "Msb2 won by resignation"]

1. d4 {[%clk 0:03:00.9]} 1... e6 {[%clk 0:03:00.6]} 2. c4 {[%clk 0:03:01.2]}
2... Nf6 {[%clk 0:03:00.9]} 3. Nc3 {[%clk 0:03:01.8]} 3... Bb4 {[%clk
0:03:01.3]} 4. e3 {[%clk 0:03:01.9]} 4... O-O {[%clk 0:02:59.3]} 5. Bd2 {[%clk
0:03:02.4]} 5... b6 {[%clk 0:02:56.9]} 6. Nf3 {[%clk 0:03:02.5]} 6... Bb7 {[%clk
0:02:56.8]} 7. Bd3 {[%clk 0:03:03.1]} 7... Bxc3 {[%clk 0:02:50.7]} 8. Bxc3
{[%clk 0:03:03.9]} 8... Ne4 {[%clk 0:02:49.4]} 9. Bxe4 {[%clk 0:03:04.4]} 9...
Bxe4 {[%clk 0:02:50.3]} 10. d5 {[%clk 0:03:05.3]} 10... c5 {[%clk 0:02:23.2]}
11. Nd2 {[%clk 0:03:03.8]} 11... exd5 {[%clk 0:02:21.4]} 12. Nxe4 {[%clk
0:02:47.1]} 12... dxe4 {[%clk 0:02:20.9]} 13. Qg4 {[%clk 0:02:47.7]} 13... f6
{[%clk 0:02:20.1]} 14. Qxe4 {[%clk 0:02:39.3]} 14... Nc6 {[%clk 0:02:16.6]} 15.
O-O-O {[%clk 0:02:39.3]} 15... Qe8 {[%clk 0:02:04.3]} 16. Qxe8 {[%clk
0:02:37.5]} 16... Rfxe8 {[%clk 0:02:00.4]} 17. Rxd7 {[%clk 0:02:38.4]} 17...
Red8 {[%clk 0:01:57]} 18. Rhd1 {[%clk 0:02:36.1]} 18... Kf8 {[%clk 0:01:57.4]}
19. g4 {[%clk 0:02:31.9]} 19... Rxd7 {[%clk 0:01:45]} 20. Rxd7 {[%clk
0:02:32.8]} 20... Rd8 {[%clk 0:01:45.4]} 21. Rxd8+ {[%clk 0:02:15.6]} 21... Nxd8
{[%clk 0:01:46.3]} 22. Kd2 {[%clk 0:02:15.8]} 22... Ke7 {[%clk 0:01:46.7]} 23.
Kd3 {[%clk 0:02:16.1]} 23... Ke6 {[%clk 0:01:47.3]} 24. e4 {[%clk 0:02:12.3]}
24... Nc6 {[%clk 0:01:19.9]} 25. f4 {[%clk 0:02:12.1]} 25... g6 {[%clk
0:00:29.3]} 26. f5+ {[%clk 0:02:11.7]} 26... Kf7 {[%clk 0:00:17.4]} 27. Ke3
{[%clk 0:01:54.6]} 27... g5 {[%clk 0:00:13.8]} 28. e5 {[%clk 0:01:55.2]} 28...
fxe5 {[%clk 0:00:14.1]} 29. Ke4 {[%clk 0:01:55.5]} 29... Kf6 {[%clk 0:00:14.6]}
30. Be1 {[%clk 0:01:44.9]} 30... Ke7 {[%clk 0:00:08.6]} 31. Kd5 {[%clk
0:01:43.3]} 31... Nd4 {[%clk 0:00:08.6]} 32. Bg3 {[%clk 0:01:43.3]} 32... Nf3
{[%clk 0:00:05.2]} 33. Bxe5 {[%clk 0:01:43.7]} 33... Kf7 {[%clk 0:00:04.2]} 34.
Bg3 {[%clk 0:01:41.4]} 34... Nd4 {[%clk 0:00:04.4]} 35. b4 {[%clk 0:01:39.8]}
35... Nf3 {[%clk 0:00:02.3]} 36. bxc5 {[%clk 0:01:39.9]} 36... bxc5 {[%clk
0:00:02.8]} 37. Kxc5 {[%clk 0:01:40.8]} 37... Nd2 {[%clk 0:00:03.2]} 38. Kd5
{[%clk 0:01:40.9]} 38... Nf3 {[%clk 0:00:03.4]} 39. c5 {[%clk 0:01:41.4]} 39...
Nd2 {[%clk 0:00:03.8]} 40. c6 {[%clk 0:01:41.8]} 40... Ke7 {[%clk 0:00:04.5]}
41. f6+ {[%clk 0:01:39.9]} 1-0

[Event "Late-Titled-Tuesday-Blitz-June-04-2024"]
[Site "Chess.com"]
[Date "2024.06.04"]
[Round "2"]
[White "chess94cu"]
[Black "jefferyx"]
[Result "0-1"]
[WhiteElo "2630"]
[BlackElo "3088"]
[TimeControl "180+1"]
[EndTime "14:16:13 PDT"]
[Termination "jefferyx won by resignation"]

1. e4 {[%clk 0:03:00.9]} 1... c5 {[%clk 0:03:00]} 2. Nf3 {[%clk 0:02:59.8]} 2...
d6 {[%clk 0:03:00.6]} 3. c3 {[%clk 0:02:59.9]} 3... Nf6 {[%clk 0:03:00.6]} 4.
Be2 {[%clk 0:02:59.9]} 4... Nbd7 {[%clk 0:02:59.1]} 5. d3 {[%clk 0:03:00]} 5...
g6 {[%clk 0:02:58.5]} 6. O-O {[%clk 0:03:00.3]} 6... Bg7 {[%clk 0:02:59.3]} 7.
Re1 {[%clk 0:03:00.9]} 7... O-O {[%clk 0:02:59.8]} 8. Bf1 {[%clk 0:03:01.6]}
8... e5 {[%clk 0:02:57.4]} 9. a4 {[%clk 0:03:01]} 9... b6 {[%clk 0:02:53.7]} 10.
Nbd2 {[%clk 0:03:01.5]} 10... Bb7 {[%clk 0:02:53.8]} 11. a5 {[%clk 0:02:52.8]}
11... d5 {[%clk 0:02:53.2]} 12. exd5 {[%clk 0:02:41.4]} 12... Nxd5 {[%clk
0:02:54.1]} 13. Nc4 {[%clk 0:02:41.7]} 13... Qc7 {[%clk 0:02:54.1]} 14. g3
{[%clk 0:02:31]} 14... b5 {[%clk 0:02:51]} 15. a6 {[%clk 0:02:31.1]} 15... Bc8
{[%clk 0:02:40.3]} 16. Ne3 {[%clk 0:02:31.5]} 16... Nxe3 {[%clk 0:02:32.1]} 17.
Bxe3 {[%clk 0:02:32.4]} 17... Rb8 {[%clk 0:02:32.7]} 18. Nd2 {[%clk 0:02:18.4]}
18... Rb6 {[%clk 0:02:29.2]} 19. b4 {[%clk 0:02:18.9]} 19... Rxa6 {[%clk
0:02:20.1]} 20. Rxa6 {[%clk 0:02:17.8]} 20... Bxa6 {[%clk 0:02:21]} 21. Qa1
{[%clk 0:02:18.1]} 21... Bb7 {[%clk 0:02:13.9]} 22. bxc5 {[%clk 0:02:12.7]}
22... Qc6 {[%clk 0:01:55.7]} 23. f3 {[%clk 0:02:12.1]} 23... Nxc5 {[%clk
0:01:53.4]} 24. Bg2 {[%clk 0:01:55.8]} 24... Nxd3 {[%clk 0:01:51.4]} 25. Rd1
{[%clk 0:01:52.1]} 25... f5 {[%clk 0:01:49.3]} 26. Nb3 {[%clk 0:01:48.9]} 26...
Qd5 {[%clk 0:01:29.6]} 27. Nc5 {[%clk 0:01:37.4]} 27... Bh6 {[%clk 0:01:23.5]}
28. Bf2 {[%clk 0:01:08.9]} 28... e4 {[%clk 0:01:23.9]} 29. fxe4 {[%clk
0:00:36.9]} 29... fxe4 {[%clk 0:01:24.8]} 30. Bxe4 {[%clk 0:00:37.1]} 30... Qf7
{[%clk 0:01:24.7]} 31. Bd4 {[%clk 0:00:31.6]} 31... Nxc5 {[%clk 0:01:22.8]} 32.
Bxb7 {[%clk 0:00:26.4]} 32... Nxb7 {[%clk 0:01:23.7]} 33. Qxa7 {[%clk
0:00:25.7]} 33... Nd6 {[%clk 0:01:18.2]} 34. Qc5 {[%clk 0:00:20.7]} 34... Nc4
{[%clk 0:01:17.1]} 35. Qxb5 {[%clk 0:00:19.9]} 35... Be3+ {[%clk 0:01:15.7]} 36.
Bxe3 {[%clk 0:00:20]} 36... Nxe3 {[%clk 0:01:16.6]} 0-1

[Event "Late-Titled-Tuesday-Blitz-June-04-2024"]
[Site "Chess.com"]
[Date "2024.06.04"]
[Round "2"]
[White "Chess_Star1234"]
[Black "cthake"]
[Result "1-0"]
[WhiteElo "2415"]
[BlackElo "1756"]
[TimeControl "180+1"]
[EndTime "14:16:14 PDT"]
[Termination "Chess_Star1234 won by resignation"]

1. d4 {[%clk 0:03:00.5]} 1... Nf6 {[%clk 0:02:58.9]} 2. c4 {[%clk 0:03:01.1]}
2... c5 {[%clk 0:02:58.2]} 3. d5 {[%clk 0:03:01.4]} 3... e6 {[%clk 0:02:58.1]}
4. Nc3 {[%clk 0:03:01.9]} 4... exd5 {[%clk 0:02:55.9]} 5. cxd5 {[%clk
0:03:02.8]} 5... d6 {[%clk 0:02:56.2]} 6. e4 {[%clk 0:03:03.5]} 6... g6 {[%clk
0:02:56.5]} 7. f3 {[%clk 0:03:04.3]} 7... Bg7 {[%clk 0:02:56.8]} 8. Nge2 {[%clk
0:03:05]} 8... O-O {[%clk 0:02:56.9]} 9. Ng3 {[%clk 0:03:05.6]} 9... a6 {[%clk
0:02:54.6]} 10. a4 {[%clk 0:03:05.7]} 10... Ne8 {[%clk 0:02:45.3]} 11. Be2
{[%clk 0:03:05.5]} 11... f5 {[%clk 0:02:45.5]} 12. exf5 {[%clk 0:02:29.5]} 12...
Bxf5 {[%clk 0:02:44.2]} 13. Nxf5 {[%clk 0:02:24.4]} 13... Rxf5 {[%clk
0:02:44.1]} 14. f4 {[%clk 0:02:12.7]} 14... Bd4 {[%clk 0:02:40.6]} 15. Bg4
{[%clk 0:02:08.4]} 15... Rf8 {[%clk 0:02:39.7]} 16. Be6+ {[%clk 0:01:55.5]}
16... Kh8 {[%clk 0:02:39.2]} 17. Ne2 {[%clk 0:01:54.5]} 17... Bg7 {[%clk
0:02:31.7]} 18. O-O {[%clk 0:01:53.5]} 18... Nd7 {[%clk 0:02:30.9]} 19. Bd2
{[%clk 0:01:39.2]} 19... Ndf6 {[%clk 0:02:26.6]} 20. Bc3 {[%clk 0:01:34.6]}
20... Nc7 {[%clk 0:02:22.5]} 21. f5 {[%clk 0:01:14.5]} 21... gxf5 {[%clk
0:02:14.9]} 22. Rxf5 {[%clk 0:01:15.4]} 22... Nxe6 {[%clk 0:02:07.9]} 23. dxe6
{[%clk 0:00:46.8]} 23... Qe7 {[%clk 0:02:07.2]} 24. Nf4 {[%clk 0:00:38.5]} 24...
Rad8 {[%clk 0:01:55.7]} 25. Qe2 {[%clk 0:00:14.5]} 25... b6 {[%clk 0:01:23.6]}
26. Re1 {[%clk 0:00:13.3]} 26... Kg8 {[%clk 0:01:17.3]} 27. Bxf6 {[%clk
0:00:13.2]} 27... Rxf6 {[%clk 0:01:16.5]} 28. Nd5 {[%clk 0:00:13.2]} 28... Rxe6
{[%clk 0:00:59.4]} 29. Nxe7+ {[%clk 0:00:12.8]} 1-0

[Event "Late-Titled-Tuesday-Blitz-June-04-2024"]
[Site "Chess.com"]
[Date "2024.06.04"]
[Round "2"]
[White "Faqade"]
[Black "rezamahdavi2008"]
[Result "0-1"]
[WhiteElo "2587"]
[BlackElo "2931"]
[TimeControl "180+1"]
[EndTime "14:16:22 PDT"]
[Termination "rezamahdavi2008 won by checkmate"]

1. d4 {[%clk 0:03:00.9]} 1... Nf6 {[%clk 0:02:44.4]} 2. c4 {[%clk 0:03:00]} 2...
e6 {[%clk 0:02:28.2]} 3. Nc3 {[%clk 0:03:00.1]} 3... Bb4 {[%clk 0:02:27.4]} 4.
Qc2 {[%clk 0:03:00.6]} 4... b6 {[%clk 0:02:24]} 5. e4 {[%clk 0:02:58.9]} 5... c5
{[%clk 0:02:14.2]} 6. d5 {[%clk 0:02:58.6]} 6... Qe7 {[%clk 0:02:14.7]} 7. Ne2
{[%clk 0:02:56.2]} 7... exd5 {[%clk 0:02:15]} 8. exd5 {[%clk 0:02:56.3]} 8...
O-O {[%clk 0:02:15.1]} 9. f3 {[%clk 0:02:45.4]} 9... d6 {[%clk 0:02:15.1]} 10.
a3 {[%clk 0:02:37.3]} 10... Ba5 {[%clk 0:02:12]} 11. Kf2 {[%clk 0:02:36.8]}
11... Nbd7 {[%clk 0:01:56.4]} 12. Ng3 {[%clk 0:02:32.1]} 12... Ne5 {[%clk
0:01:56.2]} 13. Be2 {[%clk 0:02:29.6]} 13... Re8 {[%clk 0:01:54.7]} 14. Rb1
{[%clk 0:02:27.8]} 14... Bxc3 {[%clk 0:01:52.6]} 15. Qxc3 {[%clk 0:02:28.7]}
15... b5 {[%clk 0:01:48]} 16. b3 {[%clk 0:02:26.5]} 16... bxc4 {[%clk
0:01:46.3]} 17. bxc4 {[%clk 0:02:25.6]} 17... Ba6 {[%clk 0:01:44.2]} 18. Bf4
{[%clk 0:01:58]} 18... Ng6 {[%clk 0:01:34.1]} 19. Bd2 {[%clk 0:01:57.4]} 19...
Nh5 {[%clk 0:01:31.8]} 20. Ne4 {[%clk 0:01:20.3]} 20... Nhf4 {[%clk 0:01:11.2]}
21. Rbe1 {[%clk 0:01:11.4]} 21... f5 {[%clk 0:00:52]} 22. Ng3 {[%clk 0:01:09.2]}
22... Qh4 {[%clk 0:00:51.7]} 23. Bf1 {[%clk 0:00:40.4]} 23... Rxe1 {[%clk
0:00:41.4]} 24. Bxe1 {[%clk 0:00:41.3]} 24... Ne5 {[%clk 0:00:36.6]} 25. Bd2
{[%clk 0:00:40.2]} 25... Rb8 {[%clk 0:00:31]} 26. Kg1 {[%clk 0:00:29]} 26... Rb1
{[%clk 0:00:29.7]} 27. Nxf5 {[%clk 0:00:28]} 27... Ne2# {[%clk 0:00:29.7]} 0-1

[Event "Late-Titled-Tuesday-Blitz-June-04-2024"]
[Site "Chess.com"]
[Date "2024.06.04"]
[Round "2"]
[White "sammartin99"]
[Black "A4RookA3"]
[Result "0-1"]
[WhiteElo "2305"]
[BlackElo "2520"]
[TimeControl "180+1"]
[EndTime "14:16:25 PDT"]
[Termination "A4RookA3 won on time"]

1. d4 {[%clk 0:02:59.3]} 1... Nf6 {[%clk 0:03:00.9]} 2. c4 {[%clk 0:02:57.6]}
2... e6 {[%clk 0:03:01]} 3. Nc3 {[%clk 0:02:56.7]} 3... Bb4 {[%clk 0:03:01]} 4.
a3 {[%clk 0:02:56.1]} 4... Bxc3+ {[%clk 0:03:00.1]} 5. bxc3 {[%clk 0:02:55.9]}
5... d6 {[%clk 0:03:00.6]} 6. f3 {[%clk 0:02:55.3]} 6... e5 {[%clk 0:02:59.6]}
7. e4 {[%clk 0:02:54.9]} 7... Nc6 {[%clk 0:02:59.1]} 8. Be3 {[%clk 0:02:49.5]}
8... b6 {[%clk 0:02:58]} 9. Bd3 {[%clk 0:02:47.9]} 9... Na5 {[%clk 0:02:55.4]}
10. Qe2 {[%clk 0:02:45]} 10... c5 {[%clk 0:02:55.5]} 11. d5 {[%clk 0:02:42.2]}
11... Ba6 {[%clk 0:02:52.4]} 12. Nh3 {[%clk 0:02:39.9]} 12... Qd7 {[%clk
0:02:52.4]} 13. a4 {[%clk 0:02:39]} 13... O-O {[%clk 0:02:43.1]} 14. O-O {[%clk
0:02:36.2]} 14... Rae8 {[%clk 0:02:35.4]} 15. Bg5 {[%clk 0:01:44.6]} 15... Qe7
{[%clk 0:02:25.3]} 16. f4 {[%clk 0:01:36.5]} 16... h6 {[%clk 0:02:14.7]} 17.
fxe5 {[%clk 0:00:38.6]} 17... hxg5 {[%clk 0:02:11.1]} 18. exf6 {[%clk
0:00:38.5]} 18... gxf6 {[%clk 0:02:12]} 19. Nf2 {[%clk 0:00:33]} 19... f5 {[%clk
0:02:09.9]} 20. Qh5 {[%clk 0:00:21.6]} 20... Kg7 {[%clk 0:01:24.4]} 21. exf5
{[%clk 0:00:19.1]} 21... Rh8 {[%clk 0:01:24.7]} 22. f6+ {[%clk 0:00:14.7]} 22...
Qxf6 {[%clk 0:01:24]} 23. Qg4 {[%clk 0:00:09.4]} 23... Qe5 {[%clk 0:01:23.6]}
24. Nh3 {[%clk 0:00:04.1]} 24... f6 {[%clk 0:01:21.3]} 25. Bf5 {[%clk
0:00:02.9]} 25... Rh4 {[%clk 0:01:12.1]} 26. Qf3 {[%clk 0:00:01.3]} 26... Nxc4
{[%clk 0:01:09.5]} 27. Rae1 {[%clk 0:00:01.2]} 27... Qxe1 {[%clk 0:01:09]} 28.
Rxe1 {[%clk 0:00:01.3]} 28... Rxe1+ {[%clk 0:01:09.9]} 29. Kf2 {[%clk 0:00:02]}
29... Rf1+ {[%clk 0:01:08.8]} 30. Kxf1 {[%clk 0:00:01]} 30... Nd2+ {[%clk
0:01:09.1]} 31. Kf2 {[%clk 0:00:01.6]} 31... Nxf3 {[%clk 0:01:10]} 32. Kxf3
{[%clk 0:00:01.4]} 32... Rxa4 {[%clk 0:01:06]} 0-1

[Event "Late-Titled-Tuesday-Blitz-June-04-2024"]
[Site "Chess.com"]
[Date "2024.06.04"]
[Round "2"]
[White "Pachonpower"]
[Black "Titus369"]
[Result "0-1"]
[WhiteElo "2370"]
[BlackElo "2640"]
[TimeControl "180+1"]
[EndTime "14:16:32 PDT"]
[Termination "Titus369 won by checkmate"]

1. d4 {[%clk 0:03:00.9]} 1... d5 {[%clk 0:02:54.1]} 2. Nf3 {[%clk 0:03:01]} 2...
Nf6 {[%clk 0:02:47.6]} 3. e3 {[%clk 0:03:00.7]} 3... e6 {[%clk 0:02:45.8]} 4.
Nbd2 {[%clk 0:03:00.5]} 4... Bd6 {[%clk 0:02:34.6]} 5. Bd3 {[%clk 0:03:00.1]}
5... O-O {[%clk 0:02:33.1]} 6. O-O {[%clk 0:02:58.8]} 6... c5 {[%clk 0:02:32.4]}
7. c3 {[%clk 0:02:58.9]} 7... Nc6 {[%clk 0:02:30.7]} 8. Qe2 {[%clk 0:02:58.9]}
8... e5 {[%clk 0:02:30.2]} 9. dxc5 {[%clk 0:02:59.3]} 9... Bxc5 {[%clk
0:02:22.9]} 10. e4 {[%clk 0:03:00.2]} 10... d4 {[%clk 0:02:22.4]} 11. h3 {[%clk
0:02:54.1]} 11... Nh5 {[%clk 0:02:06.7]} 12. Nb3 {[%clk 0:02:52.5]} 12... Bb6
{[%clk 0:01:55]} 13. cxd4 {[%clk 0:02:42.4]} 13... g6 {[%clk 0:01:42]} 14. d5
{[%clk 0:02:34.7]} 14... Ng3 {[%clk 0:01:40.6]} 15. Qd2 {[%clk 0:02:17.8]} 15...
Nxf1 {[%clk 0:01:37.9]} 16. Kxf1 {[%clk 0:02:18.7]} 16... Nd4 {[%clk 0:01:28.2]}
17. Nbxd4 {[%clk 0:02:18.7]} 17... exd4 {[%clk 0:01:27.5]} 18. Qh6 {[%clk
0:02:18.2]} 18... f6 {[%clk 0:01:26.8]} 19. e5 {[%clk 0:02:16.4]} 19... fxe5
{[%clk 0:01:12.8]} 20. Bxg6 {[%clk 0:02:14.5]} 20... Qd7 {[%clk 0:01:06.1]} 21.
Nxe5 {[%clk 0:02:08.7]} 21... Qg7 {[%clk 0:01:03.7]} 22. Qxg7+ {[%clk
0:02:08.2]} 22... Kxg7 {[%clk 0:01:03.3]} 23. Bd3 {[%clk 0:02:06.6]} 23... Bf5
{[%clk 0:00:56.2]} 24. Bxf5 {[%clk 0:01:54.5]} 24... Rxf5 {[%clk 0:00:57.1]} 25.
f4 {[%clk 0:01:52.5]} 25... d3 {[%clk 0:00:43.8]} 26. g4 {[%clk 0:01:49.9]}
26... Rxe5 {[%clk 0:00:36.5]} 27. fxe5 {[%clk 0:01:50.8]} 27... Rf8+ {[%clk
0:00:35.6]} 28. Ke1 {[%clk 0:01:47.6]} 28... Rf2 {[%clk 0:00:34.6]} 29. e6
{[%clk 0:01:40.8]} 29... Rg2 {[%clk 0:00:26.2]} 30. b3 {[%clk 0:01:23.8]} 30...
Bd4 {[%clk 0:00:22.7]} 31. Rb1 {[%clk 0:01:19.9]} 31... Re2+ {[%clk 0:00:20.5]}
32. Kd1 {[%clk 0:01:19.2]} 32... Bc3 {[%clk 0:00:18.5]} 33. Bd2 {[%clk 0:00:53]}
33... Rxd2+ {[%clk 0:00:13.8]} 34. Kc1 {[%clk 0:00:53.4]} 34... Re2 {[%clk
0:00:13.5]} 35. Rb2 {[%clk 0:00:51]} 35... Re1# {[%clk 0:00:13]} 0-1

[Event "Late-Titled-Tuesday-Blitz-June-04-2024"]
[Site "Chess.com"]
[Date "2024.06.04"]
[Round "2"]
[White "Sl4werThanYou"]
[Black "Crasyhealer"]
[Result "1-0"]
[WhiteElo "2754"]
[BlackElo "2524"]
[TimeControl "180+1"]
[EndTime "14:16:33 PDT"]
[Termination "Sl4werThanYou won by resignation"]

1. d4 {[%clk 0:03:00.9]} 1... Nf6 {[%clk 0:01:39.3]} 2. Nc3 {[%clk 0:03:00]}
2... d5 {[%clk 0:01:37.4]} 3. Bf4 {[%clk 0:03:00.3]} 3... c6 {[%clk 0:01:37.7]}
4. e3 {[%clk 0:02:59.4]} 4... Bg4 {[%clk 0:01:37.8]} 5. f3 {[%clk 0:02:59.4]}
5... Bh5 {[%clk 0:01:37.9]} 6. g4 {[%clk 0:02:59.3]} 6... Bg6 {[%clk 0:01:38.2]}
7. h4 {[%clk 0:02:57]} 7... h5 {[%clk 0:01:38]} 8. g5 {[%clk 0:02:56.6]} 8...
Nfd7 {[%clk 0:01:38.2]} 9. Bd3 {[%clk 0:02:57]} 9... Bxd3 {[%clk 0:01:36.5]} 10.
Qxd3 {[%clk 0:02:57.9]} 10... g6 {[%clk 0:01:33.2]} 11. e4 {[%clk 0:02:56.4]}
11... dxe4 {[%clk 0:01:31.9]} 12. fxe4 {[%clk 0:02:56.2]} 12... e5 {[%clk
0:01:18.8]} 13. dxe5 {[%clk 0:02:57.1]} 13... Bg7 {[%clk 0:01:08.4]} 14. O-O-O
{[%clk 0:02:56.4]} 14... Qe7 {[%clk 0:01:05.7]} 15. Nf3 {[%clk 0:02:51.6]} 15...
O-O {[%clk 0:01:04.8]} 16. Qd6 {[%clk 0:02:36.4]} 16... Re8 {[%clk 0:01:00.2]}
17. Rhe1 {[%clk 0:02:33.1]} 17... Bf8 {[%clk 0:00:26.5]} 18. Qxe7 {[%clk
0:02:13.2]} 18... Rxe7 {[%clk 0:00:26.7]} 19. Rd6 {[%clk 0:02:10.8]} 19... Re8
{[%clk 0:00:25.3]} 20. Rd3 {[%clk 0:02:04.3]} 20... Nc5 {[%clk 0:00:25.4]} 21.
Rd2 {[%clk 0:02:04.1]} 21... Nba6 {[%clk 0:00:20.1]} 22. Red1 {[%clk 0:02:04.7]}
22... Ne6 {[%clk 0:00:20.1]} 23. Bg3 {[%clk 0:02:02.1]} 23... Bb4 {[%clk
0:00:19.7]} 24. a3 {[%clk 0:02:00.5]} 24... Bxc3 {[%clk 0:00:19.8]} 25. bxc3
{[%clk 0:02:01.4]} 25... Nac5 {[%clk 0:00:20.2]} 26. Re2 {[%clk 0:02:01.5]}
26... Na4 {[%clk 0:00:20.1]} 27. Rd3 {[%clk 0:02:01.4]} 27... Rad8 {[%clk
0:00:20.7]} 28. Rde3 {[%clk 0:02:00.2]} 28... Nb6 {[%clk 0:00:20]} 29. Rd3
{[%clk 0:02:00.2]} 29... Na4 {[%clk 0:00:19.4]} 30. Red2 {[%clk 0:01:59.3]}
30... Rxd3 {[%clk 0:00:18.6]} 31. Rxd3 {[%clk 0:02:00.2]} 31... Nec5 {[%clk
0:00:19]} 32. Rd4 {[%clk 0:01:59]} 32... Nxc3 {[%clk 0:00:18.5]} 33. Rc4 {[%clk
0:01:52.3]} 33... Ne2+ {[%clk 0:00:18.3]} 34. Kd2 {[%clk 0:01:52.6]} 34... Nxe4+
{[%clk 0:00:17.3]} 35. Rxe4 {[%clk 0:01:52.2]} 35... Nxg3 {[%clk 0:00:17.8]} 36.
Rb4 {[%clk 0:01:52.5]} 36... Re7 {[%clk 0:00:17.4]} 37. Ke3 {[%clk 0:01:50.9]}
37... Nf5+ {[%clk 0:00:16.9]} 38. Kf4 {[%clk 0:01:51.5]} 38... Kf8 {[%clk
0:00:16.4]} 39. Rb1 {[%clk 0:01:50.2]} 39... Ke8 {[%clk 0:00:16.4]} 40. Nd2
{[%clk 0:01:50.2]} 40... Nxh4 {[%clk 0:00:15.9]} 41. Ne4 {[%clk 0:01:50.2]}
41... Nf5 {[%clk 0:00:15.6]} 42. Nf6+ {[%clk 0:01:50.8]} 42... Kd8 {[%clk
0:00:16.1]} 43. Rd1+ {[%clk 0:01:51.6]} 43... Kc7 {[%clk 0:00:16.5]} 44. c4
{[%clk 0:01:51.3]} 44... h4 {[%clk 0:00:16.3]} 45. a4 {[%clk 0:01:49.3]} 45...
b6 {[%clk 0:00:16.2]} 46. c5 {[%clk 0:01:43]} 46... bxc5 {[%clk 0:00:16.3]} 47.
Rc1 {[%clk 0:01:43.6]} 47... Nd4 {[%clk 0:00:16]} 48. Ke4 {[%clk 0:01:34.4]}
48... h3 {[%clk 0:00:13.6]} 49. Rh1 {[%clk 0:01:34.2]} 49... Ne2 {[%clk
0:00:09.5]} 50. Rxh3 {[%clk 0:01:33.1]} 50... Nc3+ {[%clk 0:00:10.1]} 51. Rxc3
{[%clk 0:01:33.1]} 1-0